lending/lending_fUSD_20250121
["ID","MTS","AMOUNT","RATE_DAILY","PERIOD"]
[349869988,1737471035219,-428.39671489,0.00020144,2]
[349869989,1737471035229,-500.0,0.00020144,2]
[349869990,1737471035240,-500.0,0.00020144,2]
[349869991,1737471035252,-500.0,0.00020144,2]
[349869992,1737471035262,-500.0,0.00020144,2]
[349869993,1737471035272,-1462.91,0.00020144,2]
[349869994,1737471035283,-500.0,0.00020144,2]
[349869995,1737471035293,-500.0,0.00020144,2]
[349869996,1737471035303,-1567.14,0.00020144,2]
[349869997,1737471035313,-500.0,0.00020144,2]
[349869998,1737471035323,-500.0,0.00020144,2]
[349869999,1737471035336,-500.0,0.00020144,2]
[349870000,1737471035347,-496.0,0.00020144,2]
[349870001,1737471035356,-500.0,0.00020144,2]
[349870002,1737471035366,-500.0,0.00020144,2]
[349870003,1737471035376,-3271.02,0.00020144,2]
[349870004,1737471035385,-404.16,0.00020144,2]
[349870005,1737471035395,-500.0,0.00020144,2]
[349870006,1737471035405,-500.0,0.00020144,2]
[349870007,1737471035415,-2974.7,0.00020144,2]
[349870008,1737471035424,-500.0,0.00020144,2]
[349870009,1737471035434,-500.0,0.00020144,2]
[349870010,1737471035444,-2575.91,0.00020144,2]
[349870011,1737471035454,-500.0,0.00020144,2]
[349870012,1737471035463,-500.03,0.00020144,2]
[349870013,1737471035473,-500.0,0.00020144,2]
[349870014,1737471035483,-825.55,0.00020144,2]
[349870015,1737471035493,-500.0,0.00020144,2]
[349870016,1737471035503,-500.0,0.00020144,2]
[349870017,1737471035513,-500.0,0.00020144,2]
[349870018,1737471035523,-1035.0,0.00020144,2]
[349870019,1737471035534,-500.0,0.00020144,2]
[349870020,1737471035544,-500.0,0.00020144,2]
[349870021,1737471035554,-1129.43,0.00020144,2]
[349870022,1737471035564,-508.92213148,0.00020144,2]
[349870023,1737471035574,-500.0,0.00020144,2]
[349870024,1737471035584,-1865.7,0.00020144,2]
[349870025,1737471035593,-1116.89,0.00020144,2]
[349870026,1737471035603,-500.0,0.00020144,2]
[349870027,1737471035613,-5423.77,0.00020144,2]
[349870028,1737471035623,-500.0,0.00020144,2]
[349870029,1737471035633,-500.0,0.00020144,2]
[349870030,1737471035642,-500.0,0.00020144,2]
[349870031,1737471035653,-500.0,0.00020144,2]
[349870032,1737471035662,-1417.08,0.00020144,2]
[349870033,1737471035672,-500.0,0.00020144,2]
[349870034,1737471035682,-521.26,0.00020144,2]
[349870035,1737471035692,-500.0,0.00020144,2]
[349870036,1737471035702,-724.15,0.00020144,2]
[349870037,1737471035712,-500.0,0.00020144,2]
[349870038,1737471035722,-500.0,0.00020144,2]
[349870039,1737471035731,-1460.8,0.00020144,2]
[349870040,1737471035741,-500.0,0.00020144,2]
[349870041,1737471035754,-500.0,0.00020144,2]
[349870042,1737471035763,-500.0,0.00020144,2]
[349870043,1737471035773,-4142.56,0.00020144,2]
[349870044,1737471035783,-500.0,0.00020144,2]
[349870045,1737471035792,-600.92,0.00020144,2]
[349870046,1737471035802,-500.0,0.00020144,2]
[349870047,1737471035811,-500.0,0.00020144,2]
[349870048,1737471035820,-500.0,0.00020144,2]
[349870049,1737471035830,-500.0,0.00020144,2]
[349870050,1737471035839,-500.0,0.00020144,2]
[349870051,1737471035848,-1406.18,0.00020144,2]
[349870052,1737471035858,-500.0,0.00020144,2]
[349870053,1737471035867,-500.0,0.00020144,2]
[349870054,1737471035876,-500.0,0.00020144,2]
[349870055,1737471035886,-4195.33,0.00020144,2]
[349870056,1737471035895,-842.24,0.00020144,2]
[349870057,1737471035905,-500.0,0.00020144,2]
[349870058,1737471035914,-884.49,0.00020144,2]
[349870059,1737471035923,-500.0,0.00020144,2]
[349870060,1737471035933,-500.0,0.00020144,2]
[349870061,1737471035943,-589.09,0.00020144,2]
[349870062,1737471035952,-500.0,0.00020144,2]
[349870063,1737471035961,-1352.3,0.00020144,2]
[349870064,1737471035971,-500.0,0.00020168,2]
[349870065,1737471035982,-500.0,0.00020168,2]
[349870066,1737471035991,-500.0,0.00020168,2]
[349870067,1737471036001,-500.0,0.00020168,2]
[349870068,1737471036010,-500.0,0.00020168,2]
[349870069,1737471036019,-500.0,0.00020168,2]
[349870070,1737471036028,-500.0,0.00020168,2]
[349870071,1737471036040,-500.0,0.00020168,2]
[349870072,1737471036050,-500.0,0.00020168,2]
[349870073,1737471036060,-500.0,0.00020168,2]
[349870074,1737471036070,-500.0,0.00020168,2]
[349870075,1737471036079,-500.0,0.00020168,2]
[349870076,1737471036088,-500.0,0.00020168,2]
[349870077,1737471036098,-500.0,0.00020168,2]
[349870078,1737471036107,-500.0,0.00020168,2]
[349870079,1737471036116,-500.0,0.00020168,2]
[349870080,1737471036126,-500.0,0.00020168,2]
[349870081,1737471036136,-500.0,0.00020168,2]
[349870082,1737471036145,-500.0,0.00020168,2]
[349870083,1737471036156,-500.0,0.00020168,2]
[349870084,1737471036165,-500.0,0.00020168,2]
[349870085,1737471036175,-500.0,0.00020168,2]
[349870086,1737471036184,-500.0,0.00020168,2]
[349870087,1737471036194,-500.0,0.00020168,2]
[349870088,1737471036204,-500.0,0.00020168,2]
[349870089,1737471036214,-644.26,0.00020168,2]
[349870090,1737471036224,-685.2,0.00020168,2]
[349870091,1737471036233,-726.43,0.00020168,2]
[349870092,1737471036243,-548.48,0.00020168,2]
[349870093,1737471036254,-500.0,0.00020168,2]
[349870094,1737471036265,-1345.19,0.00020168,2]
[349870095,1737471036275,-512.65,0.00020168,2]
[349870096,1737471036286,-500.0,0.00020168,2]
[349870097,1737471036295,-1193.78,0.00020168,2]
[349870098,1737471036307,-773.52,0.00020168,2]
[349870099,1737471036316,-500.0,0.00020168,2]
[349870100,1737471036326,-628.92,0.00020168,2]
[349870101,1737471036337,-996.97,0.00020168,2]
[349870102,1737471036347,-1939.87,0.00020168,2]
[349870103,1737471036522,-500.0,0.00020168,2]
[349870104,1737471036533,-737.79,0.00020168,2]
[349870105,1737471036544,-500.0,0.00020168,2]
[349870106,1737471036554,-500.0,0.00020168,2]
[349870107,1737471036563,-1352.8,0.00020168,2]
[349870108,1737471036573,-500.0,0.00020168,2]
[349870109,1737471036582,-500.0,0.00020168,2]
[349870110,1737471036592,-500.0,0.00020168,2]
[349870111,1737471036601,-500.0,0.00020168,2]
[349870112,1737471036610,-508.55,0.00020168,2]
[349870113,1737471036620,-500.0,0.00020168,2]
[349870114,1737471036629,-500.0,0.00020168,2]
[349870115,1737471036639,-500.0,0.00020168,2]
[349870116,1737471036648,-500.0,0.00020168,2]
[349870117,1737471036658,-1210.18,0.00020168,2]
[349870118,1737471036668,-500.0,0.00020168,2]
[349870119,1737471036677,-500.0,0.00020168,2]
[349870120,1737471036687,-500.0,0.00020168,2]
[349870121,1737471036698,-500.0,0.00020168,2]
[349870122,1737471036708,-500.0,0.00020168,2]
[349870123,1737471036717,-500.0,0.00020168,2]
[349870124,1737471036727,-678.18,0.00020168,2]
[349870125,1737471036736,-500.0,0.00020168,2]
[349870126,1737471036746,-500.0,0.00020168,2]
[349870127,1737471036755,-500.0,0.00020168,2]
[349870128,1737471036765,-500.0,0.00020168,2]
[349870130,1737471036775,-500.0,0.00020168,2]
[349870132,1737471036786,-500.0,0.00020168,2]
[349870134,1737471036795,-500.0,0.00020168,2]
[349870136,1737471036804,-500.0,0.00020168,2]
[349870138,1737471036814,-547.7,0.00020168,2]
[349870140,1737471036823,-500.0,0.00020168,2]
[349870142,1737471036832,-555.36,0.00020168,2]
[349870144,1737471036841,-500.0,0.00020168,2]
[349870146,1737471036850,-500.0,0.00020168,2]
[349870148,1737471036859,-500.0,0.00020168,2]
[349870150,1737471036868,-520.57,0.00020168,2]
[349870152,1737471036878,-5000.0,0.00020173,2]
[349870154,1737471036887,-309.46528946,0.00020173,2]
[349870156,1737471036896,-1473.37596523,0.00020176,2]
[349870161,1737471036937,-1034.6,0.00020176,2]
[349870164,1737471036952,-1301.48364085,0.00020176,2]
[349870166,1737471036962,-150.0,0.00020181,2]
[349870168,1737471036971,-150.0,0.00020214,2]
[349870170,1737471036980,-228.73,0.00020224,2]
[349870172,1737471036990,-571.85310006,0.00020233,2]
[349870174,1737471036999,-3809.45960608,0.00020245,2]
[349870176,1737471037009,-543.25,0.00020272,2]
[349870178,1737471037019,-758.4,0.00020272,2]
[349870180,1737471037029,-500.0,0.00020272,2]
[349870182,1737471037041,-1008.01,0.00020272,2]
[349870184,1737471037052,-3339.85,0.00020272,2]
[349870186,1737471037062,-734.99,0.00020272,2]
[349870188,1737471037072,-500.0,0.00020272,2]
[349870190,1737471037082,-989.29,0.00020272,2]
[349870192,1737471037091,-716.28,0.00020272,2]
[349870194,1737471037100,-667.41,0.00020272,2]
[349870196,1737471037109,-1000.0,0.00020272,2]
[349870198,1737471037119,-768.53,0.00020272,2]
[349870200,1737471037128,-500.0,0.00020272,2]
[349870202,1737471037138,-804.91,0.00020272,2]
[349870203,1737471037148,-500.0,0.00020273,2]
[349870204,1737471037158,-500.0,0.00020273,2]
[349870205,1737471037167,-500.0,0.00020273,2]
[349870206,1737471037177,-500.0,0.00020273,2]
[349870207,1737471037186,-500.0,0.00020273,2]
[349870208,1737471037196,-500.0,0.00020273,2]
[349870209,1737471037205,-500.0,0.00020273,2]
[349870210,1737471037215,-379.77976266,0.00020273,2]
[349870211,1737471037224,-500.0,0.00020273,2]
[349870212,1737471037234,-500.0,0.00020273,2]
[349870213,1737471037248,-512.67774885,0.00020273,2]
[349870214,1737471037258,-500.0,0.00020273,2]
[349870215,1737471037267,-500.0,0.00020273,2]
[349870216,1737471037277,-500.0,0.00020273,2]
[349870217,1737471037289,-500.0,0.00020273,2]
[349870218,1737471037298,-500.0,0.00020273,2]
[349870219,1737471037308,-500.0,0.00020273,2]
[349870220,1737471037318,-500.0,0.00020273,2]
[349870221,1737471037328,-500.0,0.00020273,2]
[349870222,1737471037338,-500.0,0.00020273,2]
[349870223,1737471037347,-500.0,0.00020273,2]
[349870224,1737471037356,-500.0,0.00020273,2]
[349870225,1737471037366,-500.0,0.00020273,2]
[349870226,1737471037375,-500.0,0.00020273,2]
[349870227,1737471037385,-500.0,0.00020273,2]
[349870228,1737471037395,-500.0,0.00020273,2]
[349870229,1737471037404,-500.0,0.00020273,2]
[349870230,1737471037414,-500.0,0.00020273,2]
[349870231,1737471037424,-500.0,0.00020273,2]
[349870232,1737471037434,-163.37013092,0.00020273,2]
[349870233,1737471037444,-500.0,0.00020273,2]
[349870234,1737471037453,-500.0,0.00020273,2]
[349870235,1737471037464,-500.0,0.00020273,2]
[349870236,1737471037474,-500.0,0.00020273,2]
[349870237,1737471037484,-500.0,0.00020273,2]
[349870238,1737471037494,-500.0,0.00020273,2]
[349870239,1737471037503,-500.0,0.00020273,2]
[349870240,1737471037513,-500.0,0.00020273,2]
[349870241,1737471037523,-500.0,0.00020273,2]
[349870242,1737471037533,-500.0,0.00020273,2]
[349870243,1737471037543,-500.0,0.00020273,2]
[349870244,1737471037552,-500.0,0.00020273,2]
[349870245,1737471037562,-500.0,0.00020273,2]
[349870246,1737471037571,-500.0,0.00020273,2]
[349870247,1737471037581,-500.0,0.00020273,2]
[349870248,1737471037590,-500.0,0.00020273,2]
[349870249,1737471037600,-500.0,0.00020273,2]
[349870250,1737471037609,-500.0,0.00020273,2]
[349870252,1737471037619,-500.0,0.00020273,2]
[349870254,1737471037628,-500.0,0.00020273,2]
[349870255,1737471037638,-500.0,0.00020273,2]
[349870257,1737471037647,-500.0,0.00020273,2]
[349870259,1737471037657,-647.57,0.00020273,2]
[349870260,1737471037666,-500.0,0.00020273,2]
[349870261,1737471037675,-500.0,0.00020273,2]
[349870262,1737471037684,-500.0,0.00020273,2]
[349870263,1737471037695,-500.0,0.00020273,2]
[349870264,1737471037705,-500.0,0.00020273,2]
[349870265,1737471037714,-364.8645248,0.00020273,2]
[349870266,1737471037724,-500.0,0.00020273,2]
[349870267,1737471037733,-500.0,0.00020273,2]
[349870268,1737471037744,-225.53753513,0.00020273,2]
[349870269,1737471037753,-500.0,0.00020273,2]
[349870270,1737471037763,-500.0,0.00020273,2]
[349870271,1737471037772,-500.0,0.00020273,2]
[349870272,1737471037784,-500.0,0.00020273,2]
[349870273,1737471037794,-500.0,0.00020273,2]
[349870274,1737471037803,-500.0,0.00020273,2]
[349870275,1737471037812,-344.57176841,0.00020273,2]
[349870276,1737471037822,-500.0,0.00020273,2]
[349870277,1737471037831,-500.0,0.00020273,2]
[349870278,1737471037840,-500.0,0.00020273,2]
[349870279,1737471037850,-500.0,0.00020273,2]
[349870280,1737471037859,-500.0,0.00020273,2]
[349870281,1737471037868,-500.0,0.00020273,2]
[349870282,1737471037877,-500.0,0.00020273,2]
[349870283,1737471037887,-500.0,0.00020273,2]
[349870284,1737471037896,-500.0,0.00020273,2]
[349870285,1737471037905,-500.0,0.00020273,2]
[349870286,1737471037915,-500.0,0.00020273,2]
[349870287,1737471037924,-500.0,0.00020273,2]
[349870288,1737471037933,-500.0,0.00020273,2]
[349870289,1737471037943,-500.0,0.00020273,2]
[349870290,1737471037952,-500.0,0.00020273,2]
[349870291,1737471037961,-500.0,0.00020273,2]
[349870292,1737471037970,-1073.6,0.00020273,2]
[349870293,1737471037980,-500.0,0.00020273,2]
[349870294,1737471037989,-500.0,0.00020273,2]
[349870295,1737471037999,-500.0,0.00020273,2]
[349870296,1737471038008,-500.0,0.00020273,2]
[349870297,1737471038018,-500.0,0.00020273,2]
[349870298,1737471038027,-500.0,0.00020273,2]
[349870299,1737471038039,-500.0,0.00020273,2]
[349870300,1737471038049,-500.0,0.00020273,2]
[349870301,1737471038059,-150.0,0.00020276,2]
[349870302,1737471038068,-1000.0,0.00020287,2]
[349870303,1737471038078,-3809.45960608,0.00020314,2]
[349870304,1737471038088,-571.85310006,0.00020344,2]
[349870305,1737471038098,-150.0,0.00020356,2]
[349870306,1737471038110,-150.0,0.00020356,2]
[349870307,1737471038119,-150.0,0.00020356,2]
[349870308,1737471038129,-150.0,0.00020356,2]
[349870309,1737471038138,-150.0,0.00020356,2]
[349870310,1737471038147,-150.0,0.00020356,2]
[349870311,1737471038157,-150.0,0.00020356,2]
[349870312,1737471038166,-150.0,0.00020356,2]
[349870313,1737471038176,-150.0,0.00020356,2]
[349870314,1737471038185,-3809.45960608,0.00020383,2]
[349870315,1737471038195,-1000.0,0.0002039,2]
[349870316,1737471038205,-150.0,0.00020394,2]
[349870317,1737471038214,-664.2,0.00020417,2]
[349870318,1737471038224,-1597.12,0.00020417,2]
[349870319,1737471038234,-705.84,0.00020417,2]
[349870320,1737471038245,-534.53,0.00020417,2]
[349870321,1737471038256,-1996.82,0.00020417,2]
[349870322,1737471038266,-500.0,0.00020417,2]
[349870323,1737471038275,-1763.54,0.00020417,2]
[349870324,1737471038287,-859.09,0.00020417,2]
[349870325,1737471038297,-500.0,0.00020417,2]
[349870326,1737471038306,-887.8,0.00020417,2]
[349870327,1737471038316,-948.37,0.00020417,2]
[349870329,1737471038325,-1162.7,0.00020417,2]
[349870330,1737471038337,-2151.92,0.00020417,2]
[349870331,1737471038347,-1995.43,0.00020417,2]
[349870332,1737471038357,-868.54,0.00020417,2]
[349870334,1737471038366,-500.0,0.00020417,2]
[349870335,1737471038377,-658.22,0.00020417,2]
[349870336,1737471038387,-500.0,0.00020417,2]
[349870337,1737471038396,-500.0,0.00020417,2]
[349870338,1737471038406,-1901.07,0.00020417,2]
[349870339,1737471038416,-500.0,0.00020417,2]
[349870340,1737471038426,-500.0,0.00020417,2]
[349870341,1737471038435,-500.0,0.00020417,2]
[349870342,1737471038445,-500.0,0.00020417,2]
[349870343,1737471038455,-500.0,0.00020417,2]
[349870344,1737471038464,-500.0,0.00020417,2]
[349870345,1737471038474,-1813.3,0.00020417,2]
[349870346,1737471038484,-406.31987002,0.00020417,2]
[349870347,1737471038498,-93.68012998,0.00020417,2]
[349870348,1737471038507,-500.0,0.00020417,2]
[349870349,1737471038516,-500.0,0.00020417,2]
[349870350,1737471038526,-500.0,0.00020418,2]
[349870351,1737471038537,-297.99193022,0.00020418,2]
[349870352,1737471038547,-500.0,0.00020418,2]
[349870353,1737471038557,-500.0,0.00020418,2]
[349870354,1737471038566,-99.48492734,0.00020418,2]
[349870355,1737471038591,-400.51507266,0.00020418,2]
[349870356,1737471038601,-500.0,0.00020418,2]
[349870357,1737471038611,-500.0,0.00020418,2]
[349870358,1737471038621,-500.0,0.00020418,2]
[349870359,1737471038631,-500.0,0.00020418,2]
[349870360,1737471038640,-500.0,0.00020418,2]
[349870361,1737471038650,-500.0,0.00020418,2]
[349870362,1737471038659,-500.0,0.00020418,2]
[349870363,1737471038669,-500.0,0.00020418,2]
[349870364,1737471038679,-500.0,0.00020418,2]
[349870365,1737471038688,-500.0,0.00020418,2]
[349870366,1737471038698,-500.0,0.00020418,2]
[349870367,1737471038708,-500.0,0.00020418,2]
[349870368,1737471038718,-320.33243972,0.00020418,2]
[349870369,1737471038727,-500.0,0.00020418,2]
[349870370,1737471038737,-500.0,0.00020418,2]
[349870371,1737471038747,-500.0,0.00020418,2]
[349870372,1737471038758,-500.0,0.00020418,2]
[349870373,1737471038767,-500.0,0.00020418,2]
[349870374,1737471038776,-500.0,0.00020418,2]
[349870375,1737471038787,-500.0,0.00020418,2]
[349870376,1737471038797,-500.0,0.00020418,2]
[349870377,1737471038806,-500.0,0.00020418,2]
[349870378,1737471038815,-500.0,0.00020418,2]
[349870379,1737471038825,-500.0,0.00020418,2]
[349870380,1737471038836,-500.0,0.00020418,2]
[349870381,1737471038846,-500.0,0.00020418,2]
[349870382,1737471038855,-500.0,0.00020418,2]
[349870383,1737471038865,-1908.36,0.00020418,2]
[349870384,1737471038875,-1868.42,0.00020418,2]
[349870385,1737471038885,-500.0,0.00020418,2]
[349870386,1737471038894,-875.77,0.00020418,2]
[349870387,1737471038904,-796.08,0.00020418,2]
[349870388,1737471038914,-500.0,0.00020418,2]
[349870389,1737471038923,-656.859309,0.00020418,2]
[349870390,1737471038933,-500.0,0.00020418,2]
[349870391,1737471038943,-2112.45,0.00020418,2]
[349870392,1737471038952,-500.0,0.00020418,2]
[349870393,1737471038961,-895.26,0.00020418,2]
[349870394,1737471038971,-500.0,0.00020418,2]
[349870395,1737471038981,-575.13,0.00020418,2]
[349870396,1737471038990,-1833.27,0.00020418,2]
[349870397,1737471039000,-501.552762,0.00020418,2]
[349870398,1737471039010,-629.36732069,0.00020418,2]
[349870399,1737471039020,-2187.7,0.00020418,2]
[349870400,1737471039030,-500.0,0.00020418,2]
[349870401,1737471039041,-500.0,0.00020418,2]
[349870402,1737471039051,-500.0,0.00020418,2]
[349870403,1737471039061,-853.03,0.00020418,2]
[349870404,1737471039070,-500.0,0.00020418,2]
[349870405,1737471039081,-1159.22,0.00020418,2]
[349870406,1737471039090,-1061.74,0.00020418,2]
[349870407,1737471039100,-500.0,0.00020418,2]
[349870408,1737471039110,-500.0,0.00020418,2]
[349870409,1737471039119,-595.94,0.00020418,2]
[349870410,1737471039129,-200.0,0.00020418,2]
[349870411,1737471039139,-2060.23,0.00020418,2]
[349870412,1737471039148,-530.63776187,0.00020418,2]
[349870413,1737471039157,-500.0,0.00020418,2]
[349870414,1737471039167,-1462.91,0.00020418,2]
[349870415,1737471039177,-500.0,0.00020418,2]
[349870416,1737471039188,-1567.14,0.00020418,2]
[349870417,1737471039198,-500.0,0.00020418,2]
[349870418,1737471039207,-500.0,0.00020418,2]
[349870419,1737471039217,-3271.02,0.00020418,2]
[349870420,1737471039226,-500.0,0.00020418,2]
[349870421,1737471039236,-2974.7,0.00020418,2]
[349870422,1737471039250,-500.0,0.00020418,2]
[349870423,1737471039260,-368.9271341,0.00020418,2]
[349870424,1737471039270,-2575.91,0.00020418,2]
[349870425,1737471039280,-500.0,0.00020418,2]
[349870426,1737471039293,-500.03,0.00020418,2]
[349870427,1737471039303,-500.0,0.00020418,2]
[349870428,1737471039312,-825.55,0.00020418,2]
[349870429,1737471039324,-483.49984756,0.00020418,2]
[349870430,1737471039333,-500.0,0.00020418,2]
[349870431,1737471039343,-500.0,0.00020418,2]
[349870432,1737471039352,-1035.0,0.00020418,2]
[349870433,1737471039362,-500.0,0.00020418,2]
[349870434,1737471039371,-500.0,0.00020418,2]
[349870435,1737471039380,-1129.43,0.00020418,2]
[349870436,1737471039390,-500.0,0.00020418,2]
[349870437,1737471039399,-1865.7,0.00020418,2]
[349870438,1737471039410,-1116.89,0.00020418,2]
[349870439,1737471039419,-500.0,0.00020418,2]
[349870440,1737471039429,-5423.77,0.00020418,2]
[349870441,1737471039439,-500.0,0.00020418,2]
[349870442,1737471039449,-500.0,0.00020418,2]
[349870443,1737471039459,-500.0,0.00020418,2]
[349870444,1737471039469,-500.0,0.00020418,2]
[349870445,1737471039479,-1417.08,0.00020418,2]
[349870446,1737471039489,-500.0,0.00020418,2]
[349870447,1737471039499,-521.26,0.00020418,2]
[349870448,1737471039509,-500.0,0.00020418,2]
[349870449,1737471039519,-724.15,0.00020418,2]
[349870450,1737471039529,-500.0,0.00020418,2]
[349870451,1737471039541,-500.0,0.00020418,2]
[349870452,1737471039551,-1460.8,0.00020418,2]
[349870453,1737471039562,-500.0,0.00020418,2]
[349870454,1737471039572,-500.0,0.00020418,2]
[349870455,1737471039582,-462.93488849,0.00020418,2]
[349870456,1737471039593,-4142.56,0.00020418,2]
[349870457,1737471039602,-500.0,0.00020418,2]
[349870458,1737471039612,-600.92,0.00020418,2]
[349870459,1737471039621,-500.0,0.00020418,2]
[349870460,1737471039631,-500.0,0.00020418,2]
[349870461,1737471039640,-500.0,0.00020418,2]
[349870462,1737471039650,-500.0,0.00020418,2]
[349870463,1737471039659,-1406.18,0.00020418,2]
[349870464,1737471039669,-500.0,0.00020418,2]
[349870465,1737471039679,-500.0,0.00020418,2]
[349870466,1737471039688,-4195.33,0.00020418,2]
[349870467,1737471039698,-842.24,0.00020418,2]
[349870468,1737471039707,-500.0,0.00020418,2]
[349870470,1737471039717,-884.49,0.00020418,2]
[349870472,1737471039726,-500.0,0.00020418,2]
[349870474,1737471039735,-500.0,0.00020418,2]
[349870475,1737471039745,-589.09,0.00020418,2]
[349870476,1737471039754,-500.0,0.00020418,2]
[349870477,1737471039764,-1352.3,0.00020418,2]
[349870478,1737471039773,-150.0,0.00020427,2]
[349870479,1737471039784,-150.0,0.00020435,2]
[349870480,1737471039794,-500.0,0.00020442,2]
[349870482,1737471039803,-516.58264523,0.00020442,2]
[349870483,1737471039812,-179.28237886,0.00020442,2]
[349870485,1737471039821,-500.0,0.00020442,2]
[349870488,1737471039831,-500.0,0.00020442,2]
[349870490,1737471039840,-500.0,0.00020442,2]
[349870492,1737471039850,-500.0,0.00020442,2]
[349870494,1737471039859,-500.0,0.00020442,2]
[349870496,1737471039868,-500.0,0.00020442,2]
[349870514,1737471039877,-500.0,0.00020442,2]
[349870516,1737471040042,-500.0,0.00020442,2]
[349870518,1737471040052,-500.0,0.00020442,2]
[349870520,1737471040062,-500.0,0.00020442,2]
[349870522,1737471040072,-500.0,0.00020442,2]
[349870525,1737471040081,-500.0,0.00020442,2]
[349870527,1737471040091,-394.75326748,0.00020442,2]
[349870528,1737471040101,-150.24607783,0.00020442,2]
[349870531,1737471040111,-500.0,0.00020442,2]
[349870533,1737471040121,-500.0,0.00020442,2]
[349870535,1737471040131,-500.0,0.00020442,2]
[349870536,1737471040140,-500.0,0.00020442,2]
[349870538,1737471040150,-500.0,0.00020442,2]
[349870541,1737471040160,-500.0,0.00020442,2]
[349870543,1737471040171,-500.0,0.00020442,2]
[349870545,1737471040181,-644.26,0.00020442,2]
[349870547,1737471040191,-685.2,0.00020442,2]
[349870549,1737471040201,-726.43,0.00020442,2]
[349870551,1737471040211,-548.48,0.00020442,2]
[349870553,1737471040221,-5495.83,0.00020442,2]
[349870555,1737471040231,-500.0,0.00020442,2]
[349870557,1737471040241,-1345.19,0.00020442,2]
[349870559,1737471040250,-512.65,0.00020442,2]
[349870561,1737471040263,-500.0,0.00020442,2]
[349870563,1737471040272,-1193.78,0.00020442,2]
[349870565,1737471040283,-773.52,0.00020442,2]
[349870567,1737471040294,-508.43,0.00020442,2]
[349870569,1737471040303,-500.0,0.00020442,2]
[349870571,1737471040313,-628.92,0.00020442,2]
[349870573,1737471040322,-996.97,0.00020442,2]
[349870574,1737471040332,-500.0,0.00020442,2]
[349870576,1737471040342,-1793.39961374,0.00020442,2]
[349870579,1737471040357,-146.47038626,0.00020442,2]
[349870581,1737471040369,-500.0,0.00020442,2]
[349870583,1737471040379,-737.79,0.00020442,2]
[349870585,1737471040389,-500.0,0.00020442,2]
[349870587,1737471040399,-889.12,0.00020442,2]
[349870589,1737471040409,-500.0,0.00020442,2]
[349870591,1737471040419,-1352.8,0.00020442,2]
[349870593,1737471040429,-214.31961374,0.00020442,2]
[349870595,1737471040441,-285.68038626,0.00020442,2]
[349870597,1737471040452,-500.0,0.00020442,2]
[349870599,1737471040462,-500.0,0.00020442,2]
[349870601,1737471040472,-386.31962274,0.00020442,2]
[349870604,1737471040489,-113.68037726,0.00020442,2]
[349870606,1737471040498,-508.55,0.00020442,2]
[349870608,1737471040508,-500.0,0.00020442,2]